bitfinex-derivatives/quotes_ETHF0:USTF0_20250214
["timestamp","ask_amount","ask_price","bid_price","bid_amount"]
[1739550592350,0.7332,2727.1,2726.9,0.73324]
[1739550592553,1.53239,2727.2,2726.8,3.2078]
[1739550592742,0.7332,2727.1,2726.9,0.73325]
[1739550592943,0.7992,2727.2,2726.8,3.2078]
[1739550593143,0.73321,2727.1,2726.9,0.73323]
[1739550593452,1.53239,2727.2,2727.0,0.73323]
[1739550593951,0.7332,2727.1,2726.9,0.73323]
[1739550594151,0.7332,2727.1,2726.8,3.2078]
[1739550594344,0.7332,2727.1,2726.9,0.73325]
[1739550594543,0.7332,2727.1,2726.8,3.2078]
[1739550594753,0.7332,2727.1,2727.0,0.73323]
[1739550595551,0.73322,2727.1,2726.9,0.73324]
[1739550595847,0.73325,2726.9,2726.8,3.2078]
[1739550596049,5.48481159,2727.2,2726.5,3.2078]
[1739550596247,0.7333,2726.8,2726.6,0.73331]
[1739550596447,0.00549149,2727.1,2726.6,0.73331]
[1739550596649,0.73331,2726.7,2726.6,0.73331]
[1739550597049,2.85265159,2726.9,2726.5,3.2078]
[1739550597250,2.85265159,2726.9,2726.6,0.73333]
[1739550597251,0.73332,2726.7,2726.6,0.73333]
[1739550597549,2.85265159,2726.9,2726.5,3.2078]
[1739550597550,0.73333,2726.6,2726.5,3.2078]
[1739550597755,1.29723,2726.6,2726.5,3.2078]
[1739550598147,0.5639,2726.6,2726.2,3.2078]
[1739550598348,0.73345,2726.2,2725.8,3.2078]
[1739550598550,3.41655159,2726.6,2725.8,3.2078]
[1739550598748,0.73345,2726.2,2726.1,0.73346]
[1739550599050,2.85265159,2726.3,2725.8,3.2078]
[1739550599350,0.73346,2726.2,2725.8,3.2078]
[1739550599553,3.58608159,2726.3,2726.1,3.94126]
[1739550599847,0.73343,2726.3,2726.1,3.94125]
[1739550600256,3.41655159,2726.6,2726.1,3.2078]
[1739550600853,0.5639,2726.6,2726.5,0.73336]
[1739550601050,0.5639,2726.6,2726.5,0.72731883]
[1739550601253,0.5639,2726.6,2726.5,0.73336]
[1739550601449,0.73336,2726.5,2726.1,3.2078]
[1739550601759,3.41655159,2726.6,2726.3,0.73342]
[1739550601945,0.73337,2726.5,2726.1,3.2078]
[1739550602147,0.73338,2726.5,2726.3,0.7334]
[1739550602349,3.41655159,2726.6,2726.2,0.73343]
[1739550602550,0.73342,2726.3,2726.2,0.73343]
[1739550602750,0.7334,2726.4,2726.2,0.73344]
[1739550602949,0.73342,2726.3,2726.2,0.73344]
[1739550603350,2.85265159,2726.3,2726.0,0.73348]
[1739550603553,0.73347,2726.1,2726.0,0.73348]
[1739550603962,1.0843,2726.2,2726.0,0.73348]
[1739550604262,1.81775,2726.2,2726.0,0.73348]
[1739550604461,3.41655159,2726.6,2725.8,5.04163]
[1739550604661,1.83156,2726.6,2726.4,0.73338]
[1739550604856,0.5639,2726.6,2726.5,0.73336]
[1739550605959,0.73327,2726.9,2726.8,0.73328]
[1739550606463,0.73328,2726.8,2726.7,3.94108]
[1739550606762,6.06045159,2726.9,2725.9,3.2078]
[1739550607062,2.85265159,2726.5,2725.5,6.06045159]
[1739550607261,0.73348,2726.1,2726.0,0.73348]
[1739550607958,0.5604,2726.4,2725.7,1.83395]
[1739550608159,0.5604,2726.4,2726.3,0.73342]
[1739550609357,0.5539,2727.0,2726.9,0.73325]
[1739550609657,0.00549149,2727.1,2727.0,0.73323]
[1739550609860,0.00549149,2727.1,2726.9,3.2078]
[1739550610065,0.00549149,2727.1,2727.0,0.73323]
[1739550610561,0.00549149,2727.1,2727.0,6.73323]
[1739550611665,1.49e-06,2727.1,2727.0,6.73323]
[1739550611857,1.49e-06,2727.1,2727.0,0.73323]
[1739550612263,1.49e-06,2727.1,2727.0,2.59823]
[1739550612660,1.49e-06,2727.1,2727.0,8.59823]
[1739550612867,1.49e-06,2727.1,2727.0,2.59823]
[1739550614464,1.49e-06,2727.1,2727.0,8.59823]
[1739550614855,1.49e-06,2727.1,2727.0,2.59823]
[1739550616561,1.49e-06,2727.1,2727.0,8.59823]
[1739550618667,1.0912,2728.0,2727.9,0.73299]
[1739550620466,0.5519,2728.0,2727.9,0.73299]
[1739550621369,0.00550206,2728.2,2728.1,0.73293]
[1739550621565,0.00550206,2728.2,2728.1,3.94073]
[1739550621766,0.00550206,2728.2,2727.8,3.2078]
[1739550622366,0.73841206,2728.2,2728.1,0.73293]
[1739550622568,0.00550206,2728.2,2728.1,0.73293]
[1739550623166,0.00550206,2728.2,2728.1,3.94073]
[1739550623565,0.00550206,2728.2,2728.1,6.79338159]
[1739550623768,0.00550206,2728.2,2728.1,8.65738159]
[1739550627961,0.00550206,2728.2,2728.1,3.94073]
[1739550628275,0.73295,2728.1,2728.0,0.73293]
[1739550629166,0.73295,2728.1,2727.8,3.2078]
[1739550629367,1.27966,2728.0,2727.9,0.73299]
[1739550629678,1.27966,2728.0,2727.8,3.2078]
[1739550629679,0.73299,2727.9,2727.8,3.2078]
[1739550629983,0.73299,2727.9,2727.3,0.73313]
[1739550630272,8.43960159,2728.0,2727.2,3.2078]
[1739550630479,0.73313,2727.4,2727.3,0.73313]
[1739550630771,0.73316,2727.3,2727.1,0.73319]
[1739550630967,0.73321,2727.1,2726.9,3.94104]
[1739550631467,0.5544,2727.3,2726.9,3.2078]
[1739550631776,0.7332,2727.2,2727.0,0.73322]
[1739550631973,0.73323,2727.0,2726.9,3.2078]
[1739550632171,0.5544,2727.3,2726.8,0.00550206]
[1739550632365,6.06045159,2727.1,2726.2,3.2078]
[1739550632569,6.06045159,2726.8,2726.2,3.2078]
[1739550632865,6.06045159,2726.8,2725.9,5.0698]
[1739550633070,0.73341,2726.4,2726.0,0.73349]
[1739550633271,1.1005,2726.7,2725.9,5.0698]
[1739550633272,0.73343,2726.3,2725.9,3.94131]
[1739550633775,3.94670206,2726.4,2725.9,3.2078]
[1739550634074,3.21330206,2726.4,2725.9,3.2078]
[1739550634269,3.21330206,2726.4,2726.0,0.73348]
[1739550634467,0.73342,2726.3,2726.0,0.73348]
[1739550634973,3.94670206,2726.4,2726.1,0.73345]
[1739550635272,3.21330206,2726.4,2726.1,0.73345]
[1739550635467,0.5592,2726.3,2726.1,0.73345]
[1739550635873,0.5592,2726.3,2726.1,0.73346]
[1739550636072,0.5592,2726.3,2726.2,0.73344]
[1739550636469,0.5592,2726.3,2726.1,0.73346]
[1739550636775,0.5592,2726.3,2726.2,0.73344]
[1739550637672,0.5592,2726.3,2726.2,3.94124]
[1739550637872,0.00550206,2726.4,2726.3,0.73342]
[1739550638168,0.00550206,2726.4,2726.3,4.31512898]
[1739550638769,0.00550206,2726.4,2726.3,0.73342]
[1739550638974,0.00550206,2726.4,2725.8,3.2078]
[1739550639268,0.73343,2726.3,2726.1,0.73345]
[1739550639474,0.5384,2726.2,2726.1,0.73345]
[1739550639672,0.5384,2726.2,2725.8,3.2078]
[1739550640068,0.73354,2725.9,2725.7,0.73356]
[1739550640577,3.7462,2726.2,2725.5,3.2078]
[1739550640775,3.7462,2726.2,2725.1,6.00343898]
[1739550640776,0.73361,2725.6,2725.2,3.2078]
[1739550640975,0.5384,2725.5,2725.4,0.73364]
[1739550642369,0.5384,2725.5,2725.2,3.2078]
[1739550642570,0.5384,2725.5,2725.2,0.7337]
[1739550642773,0.73367,2725.4,2725.2,0.7337]
[1739550642973,1.27205,2725.5,2725.3,0.73367]
[1739550643174,0.73373,2725.2,2724.9,3.94158]
[1739550643373,0.73374,2725.2,2724.9,3.94158]
[1739550643575,0.73374,2725.2,2724.2,1.83495]
[1739550643576,0.73376,2725.1,2724.8,0.73381]
[1739550643876,3.2078,2725.2,2724.6,3.2078]
[1739550644076,0.00550206,2725.2,2724.9,3.2078]
[1739550644374,0.00550206,2725.2,2724.6,1.83467]
[1739550644375,0.00550206,2725.2,2724.6,3.2078]
[1739550644570,0.73378,2725.0,2724.7,0.73384]
[1739550644878,0.5887,2724.9,2724.7,0.73384]
[1739550645370,1.3225,2724.9,2724.7,0.73383]
[1739550645571,0.5887,2724.9,2724.6,3.2078]
[1739550645778,0.5887,2724.9,2724.6,0.73387]
[1739550645779,0.73384,2724.8,2724.6,0.73387]
[1739550646177,0.5887,2724.9,2724.8,0.73382]
[1739550646377,1.3225,2724.9,2724.7,0.73383]
[1739550646577,0.73383,2724.8,2724.6,0.73386]
[1739550646777,0.73387,2724.6,2724.4,0.73393]
[1739550646979,3.7965,2724.9,2724.2,3.2078]
[1739550647272,3.2078,2724.6,2723.9,3.2078]
[1739550647670,0.73395,2724.4,2723.9,3.2078]
[1739550647871,3.2078,2724.6,2723.9,3.2078]
[1739550648077,0.5326,2724.3,2724.2,0.73397]
[1739550648273,0.5326,2724.3,2723.9,3.2078]
[1739550648467,0.73399,2724.2,2724.0,0.73402]
[1739550648871,0.5326,2724.3,2724.0,0.73402]
[1739550649376,0.73404,2724.0,2723.9,3.2078]
[1739550649685,0.73404,2724.0,2723.9,3.94186]
[1739550649974,0.5326,2724.3,2723.9,3.2078]
[1739550650180,0.5326,2724.3,2724.2,0.73398]
[1739550650575,0.5326,2724.3,2723.9,3.2078]
[1739550650784,0.73404,2724.0,2723.9,3.2078]
[1739550651172,0.5326,2724.3,2723.9,3.2078]
[1739550651375,0.5326,2724.3,2723.9,3.94185]
[1739550651790,0.73406,2724.0,2723.8,0.73409]
[1739550652282,0.73407,2723.9,2723.7,0.7341]
[1739550652470,3.2078,2724.2,2723.5,3.2078]
[1739550652673,0.73404,2724.0,2723.8,0.73407]
[1739550652873,0.73403,2724.1,2724.0,0.73403]
[1739550653084,0.73408,2723.9,2723.5,3.2078]
[1739550653279,0.73408,2723.9,2723.7,0.73409]
[1739550653584,0.73406,2724.0,2723.5,3.2078]
[1739550653883,3.2078,2724.2,2723.5,3.2078]
[1739550654183,0.73404,2724.0,2723.9,0.73405]
[1739550654380,0.73405,2724.0,2723.9,0.73406]
[1739550654578,0.73405,2724.0,2723.5,3.2078]
[1739550654785,0.73405,2724.0,2723.8,0.73407]
[1739550655075,0.73405,2724.0,2723.9,0.73406]
[1739550655282,0.73405,2724.0,2723.5,3.2078]
[1739550655283,0.734,2724.2,2724.1,0.73401]
[1739550655483,2.3956,2724.3,2723.6,1.83537]
[1739550655783,3.2078,2724.2,2723.9,0.73404]
[1739550655978,0.73404,2724.0,2723.9,0.73404]
[1739550656674,0.73407,2723.9,2723.6,1.83537]
[1739550656879,6.78950898,2724.2,2723.5,3.2078]
[1739550657078,0.73414,2723.6,2723.5,3.94195]
[1739550657380,0.73414,2723.7,2723.6,0.73413]
[1739550657582,0.73414,2723.6,2723.5,3.94196]
[1739550658376,0.5791,2723.7,2723.6,0.73414]
[1739550658377,1.31324,2723.7,2723.6,0.73414]
[1739550658778,0.5791,2723.7,2723.5,3.2078]
[1739550659083,0.5791,2723.7,2723.6,0.73414]
[1739550659380,0.00550206,2723.8,2723.7,0.73412]
[1739550659694,6.79328662,2725.2,2723.7,3.58548662]
[1739550659880,6.79328662,2725.2,2725.0,0.73377]
[1739550659881,0.5552,2725.1,2725.0,0.73377]
[1739550660182,3.2078,2725.2,2725.1,0.73374]
[1739550660677,0.5552,2725.6,2725.1,3.2078]
[1739550660979,0.73354,2725.9,2725.1,3.2078]
[1739550661181,0.00550206,2725.6,2725.4,6.79328662]
[1739550661482,0.5552,2726.4,2725.5,3.58548662]
[1739550661676,3.2078,2726.3,2725.8,3.2078]
[1739550661878,0.73351,2726.0,2725.6,0.73359]
[1739550662281,3.2078,2726.3,2726.0,0.73348]
[1739550662483,0.5552,2726.4,2725.4,3.2078]
[1739550662484,3.94126,2726.2,2725.8,0.73354]
[1739550662784,0.73343,2726.3,2725.9,0.73351]
[1739550662984,0.56070206,2726.4,2725.4,3.2078]
[1739550663182,0.73351,2726.0,2725.6,0.73359]
[1739550663380,3.94126,2726.2,2725.8,0.73354]
[1739550663578,3.2078,2726.2,2725.4,5.04192]
[1739550663887,0.73345,2726.2,2725.4,3.2078]
[1739550664089,3.2078,2726.2,2725.4,3.2078]
[1739550664488,0.56070206,2726.4,2726.1,0.73346]
[1739550664687,0.56070206,2726.4,2725.7,3.2078]
[1739550665191,0.73342,2726.3,2726.0,0.7335]
[1739550665387,0.73342,2726.3,2725.7,3.2078]
[1739550665694,0.56070206,2726.4,2725.7,3.2078]
[1739550665886,0.56070206,2726.4,2725.4,3.2078]
[1739550666089,0.56070206,2726.4,2725.7,3.2078]
[1739550666289,0.00550206,2726.4,2726.3,0.73342]
[1739550666594,0.73344,2726.3,2726.0,0.73348]
[1739550667203,0.73344,2726.3,2725.6,5.0698]
[1739550667204,3.2078,2726.2,2725.6,3.2078]
[1739550667393,6.79328662,2725.9,2725.3,3.2078]
[1739550667695,0.73364,2725.5,2725.2,0.7337]
[1739550668390,0.73364,2725.5,2725.0,3.2078]
[1739550668794,6.79328662,2725.9,2725.0,3.2078]
[1739550669095,5.0698,2725.9,2725.7,0.73356]
[1739550669292,5.0698,2725.9,2725.3,3.2078]
[1739550669593,5.0698,2725.9,2725.7,0.73356]
[1739550669788,3.2078,2725.9,2725.3,3.2078]
[1739550669990,3.2078,2726.2,2726.1,0.73347]
[1739550670188,3.2078,2726.2,2725.6,5.04176]
[1739550670389,3.2078,2726.2,2726.1,0.73347]
[1739550671789,0.00550206,2726.4,2726.1,0.73347]
[1739550671790,0.00550206,2726.4,2726.3,0.73342]
[1739550673390,0.00550206,2726.4,2726.3,3.94122]
[1739550676696,2.06e-06,2726.4,2726.3,3.94122]
[1739550676995,2.06e-06,2726.4,2726.3,9.94122]
[1739550677389,2.06e-06,2726.4,2726.3,3.94122]
[1739550678191,2.06e-06,2726.4,2726.3,9.94122]
[1739550678396,3.2078,2727.5,2727.4,0.73312]
[1739550679688,0.00550206,2727.7,2727.4,0.73312]
[1739550679894,0.7331,2727.5,2727.2,0.00550206]
[1739550680301,0.7331,2727.5,2727.4,0.73312]
[1739550680600,0.73315,2727.3,2727.2,0.00550206]
[1739550680797,3.94095,2727.3,2727.2,0.00550206]
[1739550681103,0.73332,2726.7,2726.6,0.73332]
[1739550681703,3.2078,2726.9,2726.2,3.7885]
[1739550681893,3.2078,2726.6,2725.8,3.2078]
[1739550682102,3.2078,2726.6,2726.3,0.00550206]
[1739550682297,0.73336,2726.5,2726.4,0.73338]
[1739550682494,3.2078,2726.6,2726.3,0.00550206]
[1739550682798,0.73339,2726.4,2726.3,0.00550206]
[1739550683696,0.73339,2726.4,2725.9,3.2078]
[1739550683697,0.73339,2726.4,2725.5,3.2078]
[1739550683897,3.94131,2726.0,2725.7,0.73355]
[1739550684100,3.2078,2726.0,2725.3,0.5508]
[1739550684297,3.58548662,2725.9,2725.2,3.2078]
[1739550684496,0.73357,2725.8,2725.2,3.2078]
[1739550684697,4.31902662,2725.9,2725.5,0.73363]
[1739550684893,0.00550206,2725.8,2725.2,3.21330206]
[1739550685097,0.73907206,2725.8,2725.4,0.73364]
[1739550685292,3.58548662,2725.6,2725.2,3.21330206]
[1739550685805,3.58548662,2725.6,2725.3,0.73368]
[1739550686002,3.58548662,2725.6,2725.2,3.94700206]
[1739550686201,0.73364,2725.5,2725.2,3.94700206]
[1739550686705,0.73366,2725.4,2725.2,3.21330206]
[1739550686901,0.5739,2725.4,2725.3,0.73369]
[1739550687605,0.5739,2725.4,2725.2,3.21330206]
[1739550687906,0.5739,2725.4,2725.2,3.94700206]
[1739550688403,0.5739,2725.4,2725.3,0.73369]
[1739550689404,0.5739,2725.4,2725.2,3.21330206]
[1739550689599,0.5739,2725.4,2725.2,3.94700206]
[1739550689796,1.30757,2725.4,2725.2,3.21330206]
[1739550690002,0.73369,2725.3,2725.2,0.00550206]
[1739550690405,3.7817,2725.4,2724.4,3.2078]
[1739550690706,3.7817,2725.4,2724.7,0.73383]
[1739550690707,3.2078,2725.1,2724.7,0.73383]
[1739550690895,0.7338,2724.9,2724.7,0.73383]
[1739550691407,0.73378,2725.0,2724.8,0.73381]
[1739550692301,3.2078,2725.1,2724.3,1.8349]
[1739550692501,0.73379,2724.9,2724.8,0.73382]
[1739550692800,3.58548662,2725.0,2724.1,3.2078]
[1739550693004,3.2078,2724.6,2723.8,3.2078]
[1739550693301,3.2078,2724.6,2723.9,1.83516]
[1739550693506,3.94169,2724.6,2724.4,0.73391]
[1739550693808,3.2078,2724.6,2723.9,1.83516]
[1739550694104,0.7339,2724.5,2724.3,0.73395]
[1739550694406,3.94168,2724.6,2724.4,0.73391]
[1739550694602,3.2078,2724.6,2723.9,1.83516]
[1739550694802,0.73392,2724.5,2724.3,0.73394]
[1739550695008,0.7339,2724.5,2724.3,0.73394]
[1739550695196,3.2078,2724.6,2724.0,0.73403]
[1739550695504,0.73405,2724.0,2723.4,6.87868]
[1739550695706,3.2078,2724.3,2723.5,1.83543]
[1739550695908,0.73403,2724.1,2723.5,1.83543]
[1739550696202,0.5489,2724.2,2723.4,3.2078]
[1739550696708,0.73407,2723.9,2723.8,0.73408]
[1739550696909,0.7341,2723.8,2723.6,0.73412]
[1739550697110,3.2078,2724.0,2723.4,3.2078]
[1739550697313,5.0678,2724.0,2723.4,3.94197]
[1739550697517,0.73413,2723.7,2723.5,0.73415]
[1739550697803,5.0678,2724.0,2723.4,3.2078]
[1739550698604,0.73413,2723.7,2723.5,0.73417]
[1739550699501,0.5428,2723.6,2723.5,0.73964722]
[1739550701508,3.2078,2724.0,2723.9,0.73406]
[1739550703212,3.94184,2724.0,2723.9,0.73406]
[1739550703510,3.2078,2724.0,2723.9,0.73406]
[1739550705309,3.2078,2724.3,2723.7,3.2078]
[1739550705515,0.5428,2724.4,2724.3,0.73396]
[1739550705816,1.27674,2724.4,2724.3,0.73396]
[1739550706113,0.5428,2724.4,2724.3,0.73396]
[1739550706410,0.00550206,2724.6,2724.5,0.7339]
[1739550706616,0.73937206,2724.6,2724.5,0.7339]
[1739550706808,0.00550206,2724.6,2724.5,0.7339]
[1739550708413,0.551,2725.5,2725.4,0.73366]
[1739550708617,0.73366,2725.4,2725.3,0.73368]
[1739550708915,3.2078,2725.6,2724.9,3.2078]
[1739550709110,3.2078,2725.6,2725.5,0.73363]
[1739550709310,3.9414,2725.6,2724.9,3.2078]
[1739550709513,3.2078,2725.6,2725.3,0.00550206]
[1739550709817,3.94142,2725.6,2725.4,0.73364]
[1739550710121,3.2078,2725.6,2725.4,0.73364]
[1739550710320,3.2078,2725.6,2725.5,0.73363]
[1739550710621,3.2078,2725.6,2725.4,0.73365]
[1739550710819,3.2078,2725.6,2725.3,0.00550206]
[1739550711019,3.2078,2725.6,2725.5,0.73363]
[1739550711415,0.00550206,2725.8,2725.7,0.73358]
[1739550713413,0.00550206,2725.8,2725.7,3.94138]
[1739550714824,1.87851,2726.8,2726.0,1.8337]
[1739550715014,1.87851,2726.8,2726.0,5.0415]
[1739550715015,1.1452,2726.8,2726.0,5.0415]
[1739550715217,0.73331,2726.7,2726.5,0.73335]
[1739550715617,0.73331,2726.7,2726.0,5.0415]
[1739550715817,0.73331,2726.7,2726.1,1.83368]
[1739550716124,0.00550206,2726.6,2726.5,0.73334]
[1739550717920,0.73314,2727.4,2726.6,1.83333]
[1739550718122,0.73315,2727.3,2727.2,0.73316]
[1739550718312,0.73312,2727.4,2727.2,0.73316]
[1739550718517,0.73313,2727.4,2727.2,0.73316]
[1739550718817,3.2078,2727.5,2727.4,0.73312]
[1739550719019,0.00550206,2727.6,2727.0,0.00550206]
[1739550719212,0.73859206,2727.6,2727.4,0.73311]
[1739550719733,0.00550206,2727.6,2727.5,0.73309]
[1739550719931,0.73858206,2727.6,2727.4,0.7331]
[1739550720134,3.2078,2727.5,2727.0,0.00550206]
[1739550720329,0.7332,2727.1,2727.0,0.00550206]
[1739550720530,3.2078,2727.2,2727.0,0.00550206]
[1739550720831,0.73316,2727.3,2727.1,0.73318]
[1739550721033,0.7332,2727.1,2727.0,0.00550206]
[1739550721233,0.7332,2727.1,2726.1,1.83367]
[1739550721234,3.58548662,2727.1,2726.1,1.857]
[1739550721426,0.73336,2726.6,2726.4,0.73338]
[1739550721824,0.73336,2726.6,2726.0,5.04154]
[1739550722137,6.79328662,2726.8,2726.0,3.2078]
[1739550722332,3.2078,2726.8,2726.7,0.73331]
[1739550722531,1.857,2726.9,2726.8,0.73328]
[1739550722729,5.0648,2726.9,2726.8,0.73328]
[1739550722929,3.2078,2726.9,2726.8,0.73328]
[1739550723239,1.1216,2727.2,2727.0,0.73322]
[1739550723240,1.2778,2727.2,2727.0,0.73322]
[1739550723428,0.5446,2727.2,2726.5,1.83337]
[1739550723630,3.2078,2727.1,2726.4,5.62572]
[1739550723829,3.2078,2727.1,2726.8,0.73327]
[1739550724029,0.73326,2726.9,2726.8,0.73327]
[1739550724334,1.83308,2727.0,2726.4,3.94117]
[1739550724534,0.73335,2726.6,2726.4,3.2078]
[1739550724834,6.79328662,2726.8,2726.1,3.69616206]
[1739550725038,3.2078,2727.1,2726.3,3.2078]
[1739550725228,3.2078,2727.1,2727.0,0.73323]
[1739550725433,3.16526,2727.3,2727.1,0.7332]
[1739550725634,2.4321,2727.3,2726.7,0.5837]
[1739550725834,1.27779,2727.2,2726.7,0.5837]
[1739550726033,0.5446,2727.2,2726.7,2.41695]
[1739550726337,1.27778,2727.2,2727.1,0.7332]
[1739550726531,0.5446,2727.2,2727.1,0.7332]
[1739550726738,1.27777,2727.2,2727.1,0.7332]
[1739550727631,0.5446,2727.2,2727.1,0.7332]
[1739550727836,3.94092,2727.4,2727.3,0.73315]
[1739550728037,0.73315,2727.3,2727.2,0.73316]
[1739550728537,0.73315,2727.3,2726.9,3.2078]
[1739550728742,3.2078,2727.4,2727.3,0.73315]
[1739550729036,0.00550206,2727.6,2727.5,0.73309]
[1739550729734,0.00550206,2727.6,2727.5,3.94089]
[1739550730337,0.00550206,2727.6,2727.5,4.52399]
[1739550730640,0.5494,2728.5,2727.6,1.83268]
[1739550730841,1.28224,2728.5,2728.3,0.73286]
[1739550731042,1.28224,2728.5,2727.8,5.04029]
[1739550731043,1.28224,2728.5,2728.4,0.73285]
[1739550731243,0.5494,2728.5,2727.9,1.83247]
[1739550731440,0.5494,2728.5,2728.1,0.73292]
[1739550731637,3.2078,2728.4,2727.9,0.00550206]
[1739550731833,3.94067,2728.4,2728.2,0.73289]
[1739550732041,7.91918662,2728.4,2727.9,0.00550206]
[1739550732245,0.73311,2727.5,2727.3,0.73314]
[1739550732443,3.2078,2728.0,2727.4,3.2078]
[1739550732640,3.2078,2728.0,2727.4,0.73311]
[1739550732838,0.73309,2727.6,2727.0,3.2078]
[1739550733033,3.2078,2727.7,2727.0,3.2078]
[1739550733342,0.73309,2727.6,2727.3,0.73312]
[1739550733743,3.2078,2727.7,2727.1,0.00550206]
[1739550734041,0.73305,2727.7,2727.5,0.73308]
[1739550734242,0.73304,2727.7,2727.5,0.73307]
[1739550734543,0.73306,2727.7,2727.5,0.73309]
[1739550734837,0.73308,2727.6,2727.1,3.59098868]
[1739550735049,0.73317,2727.2,2727.1,0.00550206]
[1739550735234,3.2078,2727.4,2727.1,0.00550206]
[1739550735436,0.73317,2727.2,2727.1,0.00550206]
[1739550735842,5.6381,2727.4,2727.1,0.00550206]
[1739550736143,3.94082,2727.8,2727.6,0.73306]
[1739550736340,3.2078,2727.8,2727.3,0.73313]
[1739550736534,0.73308,2727.6,2727.3,0.73313]
[1739550736738,1.29196,2727.7,2727.4,0.7331]
[1739550737042,0.5589,2727.7,2727.1,3.75460206]
[1739550737240,3.2078,2728.1,2727.2,1.83294]
[1739550737436,3.2078,2728.1,2728.0,0.73296]
[1739550737646,0.5589,2728.2,2728.1,0.73293]
[1739550738039,3.94613206,2728.5,2728.3,0.73287]
[1739550738243,3.21330206,2728.5,2727.9,1.83247]
[1739550738441,3.21330206,2728.5,2727.8,0.5413]
[1739550738949,0.7329,2728.3,2728.0,0.73294]
[1739550739338,0.73292,2728.2,2728.0,0.73294]
[1739550739840,3.2078,2728.2,2727.8,1.2743]
[1739550740040,1.26565,2728.1,2727.9,0.73299]
[1739550740545,0.5327,2728.1,2727.8,0.5413]
[1739550740844,1.26565,2728.1,2727.9,0.73297]
[1739550741742,0.5327,2728.1,2728.0,0.73296]
[1739550742242,0.5327,2728.1,2727.8,0.5413]
[1739550742243,3.2078,2728.2,2728.1,0.73293]
[1739550742649,0.5798,2728.4,2727.8,0.5413]
[1739550742836,0.5798,2728.4,2728.0,0.73294]
[1739550743041,0.73292,2728.2,2728.0,0.73294]
[1739550743443,0.7329,2728.3,2727.8,0.5413]
[1739550743749,0.73292,2728.2,2728.0,0.73295]
[1739550744052,0.5798,2728.4,2727.9,0.73297]
[1739550744341,3.2078,2728.1,2727.9,0.73297]
[1739550744539,3.94074,2728.1,2727.5,3.6877]
[1739550744736,3.7876,2728.4,2727.5,5.0628]
[1739550744943,0.73288,2728.3,2728.2,0.73289]
[1739550745141,3.7876,2728.4,2727.5,5.0628]
[1739550745544,0.73298,2728.0,2727.9,0.73299]
[1739550745743,3.7876,2728.4,2727.5,5.0628]
[1739550746048,3.2078,2728.4,2728.2,0.73288]
[1739550746248,0.73288,2728.3,2728.2,0.73288]
[1739550746549,0.73288,2728.3,2727.8,3.2078]
[1739550746849,0.73288,2728.3,2728.2,0.73291]
[1739550747150,0.00550206,2728.5,2728.1,3.2078]
[1739550747351,0.00550206,2728.5,2728.4,0.73285]
[1739550751352,0.00550206,2728.5,2728.4,3.94065]
[1739550752540,0.00550206,2728.5,2728.4,9.94065]
[1739550752746,3.2078,2729.4,2728.4,12.87195]
[1739550753046,3.2078,2729.4,2728.2,4.15968662]
[1739550753047,3.94038,2729.4,2729.3,0.73261]
[1739550753351,5.03929,2729.4,2728.5,6.89282]
[1739550753547,0.73269,2729.1,2729.0,0.73267]
[1739550753753,5.03929,2729.4,2728.5,5.0608]
[1739550753754,1.83156,2729.3,2728.5,5.0608]
[1739550753955,0.73274,2728.9,2728.8,0.73822206]
[1739550754450,0.73271,2729.0,2728.9,0.73269]
[1739550755854,3.2078,2729.1,2728.8,0.00550206]
[1739550756056,0.73272,2728.9,2728.8,0.73823206]
[1739550756653,1.28031,2729.0,2728.9,0.73272]
[1739550756848,1.28031,2729.0,2728.8,0.00550206]
[1739550756849,0.5476,2729.0,2728.8,0.00550206]
[1739550757056,0.5476,2729.0,2728.9,0.73272]
[1739550757348,0.00550206,2729.3,2728.8,5.04513206]
[1739550757552,0.73813206,2729.3,2729.2,0.73264]
[1739550757749,0.73269,2729.1,2729.0,0.73267]
[1739550758147,0.00550206,2729.3,2728.9,1.3004]
[1739550758148,0.73269,2729.0,2728.9,1.3004]
[1739550758349,0.73269,2729.0,2728.9,0.7327]
[1739550758549,0.73272,2728.9,2728.8,0.00550206]
[1739550758751,0.73272,2728.9,2728.8,0.73824206]
[1739550759156,0.73272,2728.9,2728.8,0.00550206]
[1739550759357,3.94052,2728.9,2728.8,0.00550206]
[1739550759555,3.94052,2728.9,2727.9,5.0598]
[1739550759556,3.2078,2728.9,2727.9,5.0598]
[1739550759757,3.2078,2728.6,2728.1,0.73291]
[1739550759959,3.2078,2728.6,2727.9,5.0598]
[1739550760159,3.2078,2728.6,2728.2,0.73289]
[1739550760353,0.7329,2728.3,2728.1,0.73292]
[1739550760560,3.2078,2728.6,2728.3,0.73287]
[1739550760763,0.73285,2728.4,2728.3,0.73287]
[1739550761161,3.2078,2728.9,2728.5,0.73281]
[1739550761461,0.73282,2728.6,2728.4,0.73285]
[1739550761765,3.2078,2728.9,2728.2,3.2078]
[1739550761961,1.83187,2728.8,2728.2,3.2078]
[1739550762161,1.83187,2728.8,2728.2,3.94069]
[1739550762362,3.2078,2728.9,2728.3,0.73287]
[1739550762660,0.73288,2728.3,2728.2,3.9407]
[1739550762859,2.37827,2728.8,2728.2,3.9407]
[1739550763059,0.73287,2728.4,2728.2,3.9407]
[1739550763258,0.5464,2728.8,2728.2,3.2078]
[1739550763462,3.2078,2728.6,2728.1,0.73292]
[1739550763657,0.73296,2728.0,2727.9,0.00550206]
[1739550764264,3.2078,2728.0,2727.2,0.5376]
[1739550764558,1.83249,2727.9,2727.2,0.5376]
[1739550764752,3.2078,2727.7,2727.2,0.5376]
[1739550764958,3.2078,2728.0,2727.2,0.5376]